bitfinex-derivatives/quotes_BTCF0:USTF0_20250722
["timestamp","ask_amount","ask_price","bid_price","bid_amount"]
[1753143762381,1.74604638,117520.0,117510.0,0.73146611]
[1753143762581,1.74604638,117520.0,117510.0,0.70146611]
[1753143762781,1.15832638,117520.0,117510.0,0.70146611]
[1753143762977,1.74604638,117520.0,117510.0,0.36146611]
[1753143763283,1.74604638,117520.0,117510.0,0.67855959]
[1753143763785,1.57593808,117520.0,117510.0,0.67855959]
[1753143764183,0.98821808,117520.0,117510.0,0.33855959]
[1753143764380,1.57593808,117520.0,117510.0,0.33855959]
[1753143764577,1.74604638,117520.0,117510.0,0.33855959]
[1753143764778,1.15832638,117520.0,117510.0,0.33855959]
[1753143764978,1.74604638,117520.0,117510.0,0.33855959]
[1753143765685,1.15832638,117520.0,117510.0,0.33855959]
[1753143765983,1.74604638,117520.0,117510.0,0.33855959]
[1753143767984,1.57593808,117520.0,117510.0,0.33855959]
[1753143768288,1.74604638,117520.0,117510.0,0.33855959]
[1753143768585,0.98821808,117520.0,117510.0,0.33855959]
[1753143768787,1.57589808,117520.0,117510.0,0.33855959]
[1753143769888,1.74600638,117520.0,117510.0,0.33855959]
[1753143771488,1.57589808,117520.0,117510.0,0.33855959]
[1753143771787,1.57585808,117520.0,117510.0,0.33855959]
[1753143772789,1.57585808,117520.0,117510.0,0.69855959]
[1753143773189,0.98821808,117520.0,117510.0,0.69855959]
[1753143773389,0.73000904,117520.0,117510.0,0.33855959]
[1753143773590,1.31764904,117520.0,117510.0,0.91676863]
[1753143773786,1.05944,117520.0,117510.0,0.91676863]
[1753143773986,1.31764904,117520.0,117510.0,0.91676863]
[1753143774189,1.05944,117520.0,117510.0,0.91676863]
[1753143774382,1.31764904,117520.0,117510.0,0.91676863]
[1753143775584,1.05944,117520.0,117510.0,0.91676863]
[1753143775790,1.31764904,117520.0,117510.0,0.65855959]
[1753143776590,1.31764904,117520.0,117510.0,0.91676863]
[1753143778092,1.31764904,117520.0,117510.0,0.96263512]
[1753143778791,1.31764904,117520.0,117510.0,0.70442608]
[1753143779792,1.57585808,117520.0,117510.0,0.70442608]
[1753143780488,1.57585808,117520.0,117510.0,0.65855959]
[1753143780992,1.57585808,117520.0,117510.0,0.70442608]
[1753143781489,1.57585808,117520.0,117510.0,0.38442608]
[1753143781893,0.4718,117520.0,117510.0,0.93676863]
[1753143782193,0.4718,117520.0,117510.0,1.1222342]
[1753143783292,0.4718,117520.0,117510.0,1.20817016]
[1753143783692,0.4718,117520.0,117510.0,0.86402516]
[1753143785398,0.4718,117520.0,117510.0,1.20817016]
[1753143785698,0.4718,117520.0,117510.0,1.22345308]
[1753143786098,0.111,117520.0,117510.0,1.22345308]
[1753143786299,0.111,117520.0,117510.0,0.81815867]
[1753143786799,0.815945,117520.0,117510.0,1.44797421]
[1753143787101,0.815945,117520.0,117510.0,1.27778221]
[1753143787800,0.4718,117520.0,117510.0,1.27778221]
[1753143790000,0.4718,117520.0,117510.0,1.2166328]
[1753143790398,0.4718,117520.0,117510.0,1.27778221]
[1753143790598,0.4718,117520.0,117510.0,1.2166328]
[1753143790800,0.111,117520.0,117510.0,1.2166328]
[1753143791099,0.4718,117520.0,117510.0,1.2166328]
[1753143791805,0.111,117520.0,117510.0,1.2166328]
[1753143792003,0.4718,117520.0,117510.0,1.2166328]
[1753143792399,0.111,117520.0,117510.0,1.2166328]
[1753143792904,0.4718,117520.0,117510.0,1.2166328]
[1753143794306,0.4718,117520.0,117510.0,1.5607778]
[1753143794706,0.4718,117520.0,117510.0,1.2166328]
[1753143794906,0.4718,117520.0,117510.0,0.6291528]
[1753143795105,0.4718,117520.0,117510.0,1.2165128]
[1753143795405,0.4718,117520.0,117510.0,1.60652438]
[1753143795704,0.4718,117520.0,117510.0,1.5606578]
[1753143796304,0.4718,117520.0,117510.0,1.26237789]
[1753143796703,0.815945,117520.0,117510.0,0.92237789]
[1753143796905,0.815945,117520.0,117510.0,1.25237776]
[1753143797505,0.815945,117520.0,117510.0,0.33501776]
[1753143797700,0.815945,117520.0,117510.0,1.25233776]
[1753143798506,0.815945,117520.0,117510.0,0.66501776]
[1753143798703,0.815945,117520.0,117510.0,0.92233776]
[1753143798908,0.815945,117520.0,117510.0,1.27233776]
[1753143800204,0.4718,117520.0,117510.0,1.27233776]
[1753143802004,0.111,117520.0,117510.0,1.2264728]
[1753143802208,0.4718,117520.0,117510.0,1.27234384]
[1753143802409,0.111,117520.0,117510.0,1.2264728]
[1753143803108,0.111,117520.0,117510.0,1.5706178]
[1753143805213,0.111,117520.0,117510.0,1.2264728]
[1753143805810,0.4718,117520.0,117510.0,1.2264728]
[1753143806607,0.4718,117520.0,117510.0,1.5706178]
[1753143807714,0.4718,117520.0,117510.0,1.5705378]
[1753143808611,0.111,117520.0,117510.0,1.5705378]
[1753143808814,0.111,117520.0,117510.0,1.63168721]
[1753143810316,0.111,117520.0,117510.0,1.99248721]
[1753143810609,0.111,117520.0,117510.0,1.63168721]
[1753143811116,0.0669251,117520.0,117510.0,1.99248721]
[1753143811311,1.472185,117540.0,117520.0,0.04258]
[1753143811507,1.382185,117540.0,117530.0,0.33209834]
[1753143811711,0.794945,117540.0,117530.0,0.33209834]
[1753143812103,0.794945,117540.0,117530.0,0.30914211]
[1753143812310,0.794945,117540.0,117530.0,0.3321023]
[1753143813116,0.96701668,117540.0,117530.0,0.30914211]
[1753143814414,0.96701668,117540.0,117530.0,0.31114211]
[1753143815216,0.96701668,117540.0,117530.0,0.35705457]
[1753143816018,0.96701668,117540.0,117530.0,0.32644626]
[1753143816414,0.4508,117540.0,117530.0,0.5845546]
[1753143816621,0.70890834,117540.0,117530.0,0.9345546]
[1753143816820,0.70890834,117540.0,117530.0,1.53037513]
[1753143819024,0.70890834,117540.0,117530.0,1.55037513]
[1753143821025,0.4508,117540.0,117530.0,1.55037513]
[1753143821224,0.70890834,117540.0,117530.0,1.55037513]
[1753143821422,0.70890834,117540.0,117530.0,1.29226679]
[1753143821624,0.70890834,117540.0,117530.0,1.55037513]
[1753143821922,0.70890834,117540.0,117530.0,1.18037513]
[1753143822117,0.70890834,117540.0,117530.0,1.02226679]
[1753143822316,0.70890834,117540.0,117530.0,1.18037513]
[1753143822514,0.70890834,117540.0,117530.0,1.51037513]
[1753143822925,0.4508,117540.0,117530.0,1.51037513]
[1753143823126,0.70890834,117540.0,117530.0,1.51037513]
[1753143823725,0.70890834,117540.0,117530.0,1.02226679]
[1753143823922,0.96701668,117540.0,117530.0,1.50037513]
[1753143824124,0.96701668,117540.0,117530.0,1.03226679]
[1753143824321,0.96701668,117540.0,117530.0,1.18037513]
[1753143824526,0.96701668,117540.0,117530.0,1.56037513]
[1753143827830,0.70890834,117540.0,117530.0,1.56037513]
[1753143832738,0.4508,117540.0,117530.0,1.56037513]
[1753143833238,0.70890834,117540.0,117530.0,1.56037513]
[1753143836742,0.4508,117540.0,117530.0,1.56037513]
[1753143836936,0.70890834,117540.0,117530.0,1.56037513]
[1753143838043,0.4508,117540.0,117530.0,1.56037513]
[1753143838240,0.70890834,117540.0,117530.0,1.56037513]
[1753143839139,0.4508,117540.0,117530.0,1.30226679]
[1753143839345,0.70890834,117540.0,117530.0,1.52037513]
[1753143841547,0.70890834,117540.0,117530.0,1.47446267]
[1753143841748,0.70890834,117540.0,117530.0,1.21635433]
[1753143842047,0.70890834,117540.0,117530.0,1.24446267]
[1753143842241,0.96701668,117540.0,117530.0,0.96635433]
[1753143842446,0.96701668,117540.0,117530.0,1.50446267]
[1753143842845,0.96701668,117540.0,117530.0,0.2379538]
[1753143843040,0.96701668,117540.0,117530.0,0.43865868]
[1753143844551,0.96701668,117540.0,117530.0,0.44695155]
[1753143845548,0.96701668,117540.0,117530.0,1.02557868]
[1753143846648,0.4508,117540.0,117530.0,1.02557868]
[1753143846848,0.96701668,117540.0,117530.0,1.02557868]
[1753143847051,0.4508,117540.0,117530.0,1.02557868]
[1753143847250,0.96701668,117540.0,117530.0,1.02557868]
[1753143847446,0.96701668,117540.0,117530.0,0.43865868]
[1753143854653,1.13709608,117540.0,117530.0,0.28385868]
[1753143854855,1.39520442,117540.0,117530.0,0.28385868]
[1753143855059,1.13709608,117540.0,117530.0,0.28385868]
[1753143859561,1.39520442,117540.0,117530.0,0.28385868]
[1753143859755,1.39520442,117540.0,117530.0,0.21799868]
[1753143859962,1.39520442,117540.0,117530.0,0.04790488]
[1753143860260,1.39520442,117540.0,117530.0,0.20271972]
[1753143863163,1.39520442,117540.0,117530.0,0.22567783]
[1753143864961,1.39520442,117540.0,117530.0,0.28368783]
[1753143865661,1.39520442,117540.0,117530.0,0.28872783]
[1753143865860,1.13709608,117540.0,117530.0,0.3581746]
[1753143866164,1.72401608,117540.0,117530.0,0.30459603]
[1753143866364,1.2077994,117540.0,117530.0,0.30459603]
[1753143866565,1.55393668,117540.0,117530.0,0.30459603]
[1753143866864,1.72401598,117540.0,117530.0,0.30459603]
[1753143867866,1.72401598,117540.0,117530.0,0.30359603]
[1753143868862,1.72401598,117540.0,117530.0,0.30459603]
[1753143870768,1.72501598,117540.0,117530.0,0.30259603]
[1753143871068,1.72501598,117540.0,117530.0,0.30359603]
[1753143871269,1.55493668,117540.0,117530.0,0.30359603]
[1753143871474,1.55489668,117540.0,117530.0,0.33422195]
[1753143872871,1.03868,117540.0,117530.0,0.33422195]
[1753143873070,1.29678834,117540.0,117530.0,0.33422195]
[1753143873273,1.55928668,117540.0,117530.0,0.33422195]
[1753143874475,1.55928668,117540.0,117530.0,0.67422195]
[1753143874772,1.55928668,117540.0,117530.0,0.90937806]
[1753143874773,1.30117834,117540.0,117530.0,0.90937806]
[1753143875366,1.30117834,117540.0,117530.0,0.65126972]
[1753143875771,1.30117834,117540.0,117530.0,0.31126972]
[1753143877071,1.30117834,117540.0,117530.0,0.65126972]
[1753143877275,1.30117834,117540.0,117530.0,0.31126972]
[1753143878071,1.04307,117540.0,117530.0,0.3571746]
[1753143878272,1.30117834,117540.0,117530.0,0.3571746]
[1753143878779,1.04307,117540.0,117530.0,0.3571746]
[1753143878981,1.30117834,117540.0,117530.0,0.3571746]
[1753143880469,1.55928668,117540.0,117530.0,0.3571746]
[1753143884282,1.55928668,117540.0,117530.0,0.32654868]
[1753143885577,1.19848668,117540.0,117530.0,0.32654868]
[1753143885783,1.55928668,117540.0,117530.0,0.32654868]
[1753143886183,1.04307,117540.0,117530.0,0.32654868]
[1753143886383,1.30117834,117540.0,117530.0,0.32654868]
[1753143887983,1.04307,117540.0,117530.0,0.94465702]
[1753143888179,1.55928668,117540.0,117530.0,0.94465702]
[1753143888985,1.30117834,117540.0,117530.0,0.94465702]
[1753143889587,1.04307,117540.0,117530.0,0.94465702]
[1753143889790,1.30117834,117540.0,117530.0,0.94465702]
[1753143892091,1.04307,117540.0,117530.0,0.94465702]
[1753143892390,1.30117834,117540.0,117530.0,0.94465702]
[1753143893197,1.30117834,117540.0,117530.0,0.97526697]
[1753143894294,1.30117834,117540.0,117530.0,0.61526697]
[1753143895995,1.55928668,117540.0,117530.0,0.35715863]
[1753143896195,1.55928668,117540.0,117530.0,0.32654868]
[1753143896394,1.55928668,117540.0,117530.0,0.67654868]
[1753143897091,1.19848668,117540.0,117530.0,0.67654868]
[1753143897691,1.30117834,117540.0,117530.0,0.67654868]
[1753143898694,1.30117834,117540.0,117530.0,0.93465702]
[1753143898996,1.30117834,117540.0,117530.0,0.58465702]
[1753143899590,1.55928668,117540.0,117530.0,0.58465702]
[1753143899786,1.55928668,117540.0,117530.0,0.93465702]
[1753143901688,1.30117834,117540.0,117530.0,0.93465702]
[1753143903100,1.30117834,117540.0,117530.0,0.60465702]
[1753143903400,1.04307,117540.0,117530.0,0.34654868]
[1753143903600,1.30117834,117540.0,117530.0,0.60465702]
[1753143903801,1.04307,117540.0,117530.0,0.94465702]
[1753143904002,1.30117834,117540.0,117530.0,0.60465702]
[1753143904305,1.30117834,117540.0,117530.0,0.96465702]
[1753143904995,1.04307,117540.0,117530.0,0.96465702]
[1753143905402,1.30117834,117540.0,117530.0,0.96465702]
[1753143906004,1.04307,117540.0,117530.0,0.96465702]
[1753143906205,1.30117834,117540.0,117530.0,0.96465702]
[1753143906401,1.30117834,117540.0,117530.0,0.32654868]
[1753143906608,1.30117834,117540.0,117530.0,0.93465702]
[1753143906904,1.55928668,117540.0,117530.0,0.93465702]
[1753143908407,1.55928668,117540.0,117530.0,0.67654868]
[1753143909505,1.55928668,117540.0,117530.0,0.34654868]
[1753143918818,1.04307,117540.0,117530.0,0.34654868]
[1753143919113,1.55928668,117540.0,117530.0,0.34654868]
[1753143919518,1.55928668,117540.0,117530.0,0.60465702]
[1753143921015,1.72936608,117540.0,117530.0,0.60465702]
[1753143923018,1.72936608,117540.0,117530.0,0.34654868]
[1753143924014,1.72936608,117540.0,117530.0,0.28442868]
[1753143924307,1.98747442,117540.0,117530.0,0.30564421]
[1753143924510,1.98747442,117540.0,117530.0,0.24763421]
[1753143924911,1.98747442,117540.0,117530.0,0.20172933]
[1753143925515,1.98747442,117540.0,117530.0,0.25870933]
[1753143925714,1.72936608,117540.0,117530.0,0.25870933]
[1753143930322,1.98747442,117540.0,117530.0,0.20172933]
[1753143930518,1.72936608,117540.0,117530.0,0.20172933]
[1753143931320,1.72936608,117540.0,117530.0,0.23467933]
[1753143931621,1.72936608,117540.0,117530.0,0.25764246]
[1753143931822,1.72936608,117540.0,117530.0,0.28167246]
[1753143934222,1.2131494,117540.0,117530.0,0.28167246]
[1753143934523,1.72936608,117540.0,117530.0,0.28167246]
[1753143934717,1.2131494,117540.0,117530.0,0.28167246]
[1753143934918,1.72936608,117540.0,117530.0,0.28167246]
[1753143935225,1.2131494,117540.0,117530.0,0.28167246]
[1753143935424,1.72936608,117540.0,117530.0,0.28167246]
[1753143936323,1.72936608,117540.0,117530.0,0.29119246]
[1753143944831,1.98747442,117540.0,117530.0,0.29119246]
[1753143945134,1.72936608,117540.0,117530.0,0.29119246]
[1753143945425,1.72936608,117540.0,117530.0,0.30949933]
[1753143945631,1.72936608,117540.0,117530.0,0.3324603]
[1753143946433,1.72936608,117540.0,117530.0,0.30949933]
[1753143947129,1.2131494,117540.0,117530.0,0.30949933]
[1753143947633,1.72936608,117540.0,117530.0,0.30949933]
[1753143948030,1.2131494,117540.0,117530.0,0.32851503]
[1753143948237,1.72936608,117540.0,117530.0,0.32851503]
[1753143950630,0.97240668,117540.0,117530.0,0.32851503]
[1753143950929,1.30053834,117540.0,117530.0,0.91662337]
[1753143951830,1.30053834,117540.0,117530.0,0.88598784]
[1753143952032,1.55864668,117540.0,117530.0,0.88598784]
[1753143952334,1.55864668,117540.0,117530.0,0.6278795]
[1753143952929,1.55864668,117540.0,117530.0,0.2978795]
[1753143953127,1.72872598,117540.0,117530.0,0.2978795]
[1753143954628,1.72872598,117540.0,117530.0,0.32850267]
[1753143955026,1.72872598,117540.0,117530.0,0.37440755]
[1753143955431,1.72872598,117540.0,117530.0,0.32850267]
[1753143956529,1.55856668,117540.0,117530.0,0.32850267]
[1753143956921,1.55856668,117540.0,117530.0,0.2978795]
[1753143957128,1.55856668,117540.0,117530.0,0.6478795]
[1753143958832,1.04235,117540.0,117530.0,0.6478795]
[1753143959033,1.55856668,117540.0,117530.0,0.6478795]
[1753143959233,1.55856668,117540.0,117530.0,0.2978795]
[1753143959533,1.55856668,117540.0,117530.0,0.6278795]
[1753143959730,1.55856668,117540.0,117530.0,0.2978795]
[1753143960129,1.55856668,117540.0,117530.0,0.6778795]
[1753143960330,1.55856668,117540.0,117530.0,0.97189272]
[1753143960526,1.55856668,117540.0,117530.0,0.98189272]
[1753143960830,1.55856668,117540.0,117530.0,0.72378438]
[1753143961334,1.55856668,117540.0,117530.0,0.34378438]
[1753143962334,1.55856668,117540.0,117530.0,0.2978795]
[1753143962539,1.55856668,117540.0,117530.0,0.6378795]
[1753143962827,1.55856668,117540.0,117530.0,0.68378438]
[1753143963230,1.55856668,117540.0,117530.0,0.34378438]
[1753143963534,1.55856668,117540.0,117530.0,0.6078795]
[1753143963729,1.19776668,117540.0,117530.0,0.6078795]
[1753143963936,1.55856668,117540.0,117530.0,0.2978795]
[1753143964234,1.55856668,117540.0,117530.0,0.6478795]
[1753143964635,1.55856668,117540.0,117530.0,0.2978795]
[1753143964837,1.55856668,117540.0,117530.0,0.68378438]
[1753143965339,1.55856668,117540.0,117530.0,0.34378438]
[1753143965532,1.55856668,117540.0,117530.0,0.2978795]
[1753143965935,1.55856668,117540.0,117530.0,0.70378438]
[1753143966233,0.97240668,117540.0,117530.0,0.96189272]
[1753143966540,0.45619,117540.0,117530.0,1.54793272]
[1753143967036,0.09539,117540.0,117530.0,1.54793272]
[1753143981142,0.09539,117540.0,117530.0,1.56317725]
[1753143982747,0.09539,117540.0,117530.0,1.50202784]
[1753143983342,0.09539,117540.0,117530.0,1.86282784]
[1753143983947,0.09539,117540.0,117530.0,1.2439195]
[1753143984245,0.09539,117540.0,117530.0,1.50202784]
[1753143987255,0.09539,117540.0,117530.0,1.2439195]
[1753143987445,0.09539,117540.0,117530.0,1.50202784]
[1753143989453,0.35349834,117540.0,117530.0,1.50202784]
[1753143990152,0.09539,117540.0,117530.0,1.50202784]
[1753143990555,0.09539,117540.0,117530.0,1.56317725]
[1753143993555,0.09539,117540.0,117530.0,1.54416155]
[1753143996453,1.60002564,117560.0,117530.0,1.54416155]
[1753143996454,4e-08,117560.0,117550.0,0.10507]
[1753143996761,0.04527,117580.0,117570.0,0.2751059]
[1753143996957,0.16066,117580.0,117570.0,1.6450097]
[1753143997153,0.0363941,117580.0,117570.0,2.16122638]
[1753143997357,0.40146,117600.0,117590.0,0.212197]
[1753143997559,0.15066,117600.0,117590.0,1.48878534]
[1753143997765,0.40876834,117600.0,117590.0,1.48878534]
[1753143998056,0.16469,117600.0,117590.0,1.48878534]
[1753143998664,0.44263834,117600.0,117590.0,1.48878534]
[1753143998962,0.44263834,117600.0,117590.0,1.47878534]
[1753143999158,0.88907229,117600.0,117590.0,0.275077]
[1753143999359,0.91225229,117600.0,117590.0,0.251337]
[1753143999557,0.91725229,117600.0,117590.0,0.251337]
[1753143999961,2.01646708,117600.0,117590.0,0.2674454]
[1753144000156,2.01646708,117600.0,117590.0,0.2374254]
[1753144001664,1.67272479,117600.0,117590.0,0.2374254]
[1753144002967,1.67272479,117600.0,117590.0,0.2674454]
[1753144002968,1.3289825,117600.0,117590.0,0.2674454]
[1753144003163,1.67272479,117600.0,117590.0,0.2674454]
[1753144004068,1.67272479,117600.0,117590.0,0.2374254]
[1753144006665,1.86763229,117580.0,117570.0,0.2977068]
[1753144007264,2.03765379,117580.0,117570.0,0.2977068]
[1753144007467,2.03765379,117580.0,117570.0,0.2987068]
[1753144007769,1.6656215,117580.0,117570.0,1.04656909]
[1753144008068,1.6656215,117580.0,117570.0,0.7028268]
[1753144008069,1.3341115,117580.0,117570.0,0.7028268]
[1753144008769,1.16409,117580.0,117570.0,0.7028268]
[1753144008970,1.16409,117580.0,117570.0,0.77031364]
[1753144010974,1.16409,117580.0,117570.0,0.39031364]
[1753144011174,1.16409,117580.0,117570.0,0.77031364]
[1753144012074,0.51364,117580.0,117570.0,1.13697115]
[1753144012275,0.15284,117580.0,117570.0,1.13697115]
[1753144012582,0.15284,117580.0,117570.0,1.11405593]
[1753144013671,0.51364,117580.0,117570.0,1.11405593]
[1753144014474,0.51836,117580.0,117570.0,1.11405593]
[1753144014671,0.52796,117580.0,117570.0,1.11405593]
[1753144017275,0.52796,117580.0,117570.0,1.13697115]
[1753144019476,0.54936,117580.0,117570.0,1.13697115]
[1753144019676,1.09241379,117580.0,117570.0,0.36619364]
[1753144020170,1.09241379,117580.0,117570.0,0.73619364]
[1753144020571,0.92239229,117580.0,117570.0,0.76031364]
[1753144020779,0.57865,117580.0,117570.0,0.8138027]
[1753144020967,1.09241369,117580.0,117570.0,0.8138027]
[1753144021174,1.09241369,117580.0,117570.0,0.4438027]
[1753144021578,0.92239229,117580.0,117570.0,0.7638027]
[1753144021780,0.57865,117580.0,117570.0,0.7638027]
[1753144024682,0.57865,117580.0,117570.0,0.76378837]
[1753144025283,0.57865,117580.0,117570.0,0.42088748]
[1753144025483,0.57865,117580.0,117570.0,0.80088748]
[1753144025982,0.54936,117580.0,117570.0,0.80088748]
[1753144026284,0.57865,117580.0,117570.0,0.80088748]
[1753144026782,0.57865,117580.0,117570.0,0.81617441]
[1753144027585,0.54936,117580.0,117570.0,0.81617441]
[1753144030088,0.54936,117580.0,117570.0,1.1599167]
[1753144031483,0.18856,117580.0,117570.0,1.1599167]
[1753144031687,0.54936,117580.0,117570.0,1.1599167]
[1753144032790,0.54936,117580.0,117570.0,1.19043448]
[1753144032989,0.54936,117580.0,117570.0,1.1599167]
[1753144033191,0.54936,117580.0,117570.0,1.19043353]
[1753144033390,0.54936,117580.0,117570.0,0.46669124]
[1753144033684,0.54936,117580.0,117570.0,1.12043353]
[1753144033889,0.54936,117580.0,117570.0,1.0899167]
[1753144034192,0.54936,117580.0,117570.0,1.12043169]
[1753144035188,0.7193814,117580.0,117570.0,1.12043169]
[1753144035392,0.7193814,117580.0,117570.0,1.14043169]
[1753144035894,0.54936,117580.0,117570.0,1.14043169]
[1753144036791,0.18856,117580.0,117570.0,1.14043169]
[1753144036993,0.54936,117580.0,117570.0,1.14043169]
[1753144038192,0.54936,117580.0,117570.0,1.1099167]
[1753144039296,0.54936,117580.0,117570.0,1.0999167]
[1753144039795,0.54936,117580.0,117570.0,0.7799167]
[1753144039996,0.54936,117580.0,117570.0,1.1399167]
[1753144040296,0.54936,117580.0,117570.0,0.7799167]
[1753144040499,0.54936,117580.0,117570.0,1.1299167]
[1753144041198,0.80724082,117580.0,117570.0,1.04405523]
[1753144041598,0.80724082,117580.0,117570.0,1.62933523]
[1753144041901,0.80724082,117580.0,117570.0,1.27933523]
[1753144042198,0.80724082,117580.0,117570.0,1.59933523]
[1753144042499,0.80724082,117580.0,117570.0,1.02145441]
[1753144042699,0.80724082,117580.0,117570.0,1.27933523]
[1753144042900,0.80724082,117580.0,117570.0,1.63933523]
[1753144043096,0.80724082,117580.0,117570.0,1.27933523]
[1753144043597,0.80724082,117580.0,117570.0,1.62933523]
[1753144044595,0.80724082,117580.0,117570.0,0.35922441]
[1753144044596,1.09320164,117580.0,117570.0,0.35922441]
[1753144044801,1.09320164,117580.0,117570.0,0.61710523]
[1753144044999,1.09320164,117580.0,117570.0,0.63788523]
[1753144045199,1.09320164,117580.0,117570.0,0.66942523]
[1753144046804,0.73240164,117580.0,117570.0,0.66942523]
[1753144046992,1.09320164,117580.0,117570.0,0.66942523]
[1753144047197,0.83532082,117580.0,117570.0,0.66942523]
[1753144047398,0.83532082,117580.0,117570.0,0.69488523]
[1753144047704,0.83532082,117580.0,117570.0,0.43700441]
[1753144048005,1.00534222,117580.0,117570.0,0.66942523]
[1753144048602,1.26322304,117580.0,117570.0,0.66942523]
[1753144050102,1.26322304,117580.0,117570.0,0.41154441]
[1753144050304,1.26322304,117580.0,117570.0,0.66942523]
[1753144050707,0.90242304,117580.0,117570.0,0.66942523]
[1753144051007,1.26322304,117580.0,117570.0,0.66942523]
[1753144052508,0.7474614,117580.0,117570.0,0.66942523]
[1753144052704,1.26322304,117580.0,117570.0,0.69488523]
[1753144054106,1.26322304,117580.0,117570.0,0.43700441]
[1753144054304,1.26322304,117580.0,117570.0,0.69488523]
[1753144055108,0.7474614,117580.0,117570.0,0.69488523]
[1753144055310,1.26322304,117580.0,117570.0,0.69488523]
[1753144056009,1.26322304,117580.0,117570.0,0.66942523]
[1753144056512,1.26322304,117580.0,117570.0,0.62356446]
[1753144056808,1.26322304,117580.0,117570.0,0.66942244]
[1753144058105,1.26322304,117580.0,117570.0,0.41154162]
[1753144058309,1.26322304,117580.0,117570.0,0.66942244]
[1753144058511,0.7474614,117580.0,117570.0,0.97942244]
[1753144058805,1.26322304,117580.0,117570.0,0.97942244]
[1753144059002,0.57744,117580.0,117570.0,1.00488244]
[1753144059202,0.57744,117580.0,117570.0,0.43700162]
[1753144059203,0.83532082,117580.0,117570.0,0.43700162]
[1753144059410,0.83532082,117580.0,117570.0,1.05488244]
[1753144060812,0.80724082,117580.0,117570.0,1.05488244]
[1753144061113,0.80724082,117580.0,117570.0,0.43700162]
[1753144061310,1.13448,117580.0,117570.0,1.00488244]
[1753144061513,1.39236082,117580.0,117570.0,1.00488244]
[1753144062514,1.13448,117580.0,117570.0,1.00488244]
[1753144062714,1.39236082,117580.0,117570.0,1.00488244]
[1753144062915,1.39236082,117580.0,117570.0,0.74700162]
[1753144063215,1.39236082,117580.0,117570.0,1.00488244]
[1753144063715,1.82022304,117580.0,117570.0,1.03488244]
[1753144064719,1.56234222,117580.0,117570.0,1.03488244]
[1753144064919,1.39232082,117580.0,117570.0,1.03488244]
[1753144065518,1.13444,117580.0,117570.0,1.03488244]
[1753144065821,1.39232082,117580.0,117570.0,1.03488244]
[1753144066425,1.13444,117580.0,117570.0,1.03488244]
[1753144066721,1.39232082,117580.0,117570.0,0.98902446]
[1753144067523,1.39232082,117580.0,117570.0,0.39114364]
[1753144067820,1.39232082,117580.0,117570.0,1.01902446]
[1753144068020,1.39232082,117580.0,117570.0,0.39114364]
[1753144068315,1.39232082,117580.0,117570.0,0.64902446]
[1753144068520,1.39232082,117580.0,117570.0,0.39114364]
[1753144068721,1.39232082,117580.0,117570.0,0.98902446]
[1753144069323,1.41923082,117580.0,117570.0,0.98902446]
[1753144070220,1.41923082,117580.0,117570.0,1.0348858]
[1753144072524,1.16135,117580.0,117570.0,1.0348858]
[1753144072727,1.41923082,117580.0,117570.0,1.0348858]
[1753144073930,1.41923082,117580.0,117570.0,0.43700498]
[1753144074225,1.41923082,117580.0,117570.0,1.0048858]
[1753144074828,1.16135,117580.0,117570.0,1.0048858]
[1753144075030,1.41923082,117580.0,117570.0,1.0048858]
[1753144081235,0.21547,117580.0,117570.0,0.95902446]
[1753144081435,0.111,117580.0,117570.0,1.21690528]
[1753144081636,0.111,117580.0,117570.0,1.63886345]
[1753144081837,0.111,117580.0,117570.0,1.57770528]
[1753144082032,0.15149,117580.0,117570.0,1.31982446]
[1753144083141,0.87286304,117580.0,117570.0,0.70114364]
[1753144083340,0.64189222,117580.0,117570.0,1.54394446]
[1753144083638,0.47187082,117580.0,117570.0,1.60510263]
[1753144083841,0.44496082,117580.0,117570.0,1.60510263]
[1753144085045,0.18708,117580.0,117570.0,1.54394446]
[1753144085245,0.44496082,117580.0,117570.0,1.54394446]
[1753144087139,0.18708,117580.0,117570.0,1.54394446]
[1753144087443,0.44496082,117580.0,117570.0,1.54394446]
[1753144088648,0.80576082,117580.0,117570.0,1.54394446]
[1753144088844,0.44496082,117580.0,117570.0,1.54394446]
[1753144089343,0.44496082,117580.0,117570.0,1.60510263]
[1753144089543,0.80576082,117580.0,117570.0,1.60510263]
[1753144089842,0.80576082,117580.0,117570.0,1.54394446]
[1753144090747,0.54788,117580.0,117570.0,1.54394446]
[1753144090947,0.54788,117580.0,117570.0,1.60510263]
[1753144091747,0.54788,117580.0,117570.0,1.34722181]
[1753144091948,0.54788,117580.0,117570.0,1.60510263]
[1753144093750,0.80576082,117580.0,117570.0,1.60510263]
[1753144097150,0.80576082,117580.0,117570.0,1.54394446]
[1753144099748,0.80576082,117580.0,117570.0,1.60510263]
[1753144100052,0.80576082,117580.0,117570.0,1.54394446]
[1753144100749,0.80576082,117580.0,117570.0,1.60510263]
[1753144102458,0.54788,117580.0,117570.0,1.60510263]
[1753144102659,0.80576082,117580.0,117570.0,1.60510263]
[1753144104453,0.80576082,117580.0,117570.0,1.54394446]
[1753144105057,0.80576082,117580.0,117570.0,0.95902446]
[1753144105257,0.83151082,117580.0,117570.0,0.39114364]
[1753144105559,1.25941304,117580.0,117570.0,0.95032364]
[1753144105953,0.7436514,117580.0,117570.0,1.20820446]
[1753144106252,1.25941304,117580.0,117570.0,1.20820446]
[1753144107161,1.00153222,117580.0,117570.0,1.20820446]
[1753144108763,1.00153222,117580.0,117570.0,1.23090446]
[1753144109764,0.83151082,117580.0,117570.0,1.23090446]
[1753144111061,0.83151082,117580.0,117570.0,0.97302364]
[1753144111262,0.83151082,117580.0,117570.0,1.23090446]
[1753144111462,0.83151082,117580.0,117570.0,1.54090446]
[1753144112765,0.80576082,117580.0,117570.0,1.54090446]
[1753144118172,0.80576082,117580.0,117570.0,1.23090446]
[1753144118173,0.97578222,117580.0,117570.0,1.23090446]
[1753144118372,0.97578222,117580.0,117570.0,1.56090446]
[1753144119674,1.00069222,117580.0,117570.0,1.23090446]
[1753144119866,1.00069222,117580.0,117570.0,1.60090446]
[1753144120674,0.83067082,117580.0,117570.0,1.60090446]
[1753144122369,0.83067082,117580.0,117570.0,1.57820446]
[1753144122875,0.83067082,117580.0,117570.0,1.20820446]
[1753144123172,0.83067082,117580.0,117570.0,0.97302364]
[1753144123475,0.83067082,117580.0,117570.0,0.96626446]
[1753144123676,0.83067082,117580.0,117570.0,1.55074446]
[1753144124480,0.83067082,117580.0,117570.0,1.61190263]
[1753144126977,0.83067082,117580.0,117570.0,0.44954181]
[1753144127179,1.08855164,117580.0,117570.0,0.64626446]
[1753144127473,0.83067082,117580.0,117570.0,0.98626446]
[1753144128181,0.57279,117580.0,117570.0,0.98626446]
[1753144128377,0.83067082,117580.0,117570.0,1.04742263]
[1753144129179,0.83067082,117580.0,117570.0,0.70742263]
[1753144129379,0.83067082,117580.0,117570.0,1.01742263]